{"text_format":"1","workbook":"xlsx","n_sheets":12,"sheets":["Титульный лист","Консультирование","Психопрофилактика","Диагностика","Расписание ГКРЗ","Списки детей на ГКРЗ","Табель ГКРЗ(09)","Раписание ИКРЗ","Табель ИКРЗ (09)","Экспертная деятельность","Статистический отчёт","Рабочий лист"],"not_rendered":{"charts":0,"images":0,"macros":1,"external_links":0,"defined_names":13,"comments":0,"pivot_tables":0},"unopened":[],"bounds":{"document_bytes":16777216,"sheet_cells":100000,"rows_first":2000,"rows_last":500,"rows_between":2000,"halvings":0,"cell_chars":16384,"cell_head_chars":4096},"cells_cut":0,"cells_raw":0,"read":"whole","date_system":"1900"}

{"sheet":"Титульный лист","index":0,"n_rows":28,"n_cols":14,"rows_kept":28,"cut":false,"hidden":false,"merged":[[27,0,27,14],[0,0,0,14],[10,0,10,14],[11,0,11,14],[12,0,12,14],[13,0,13,14],[18,13,18,14],[19,13,19,14],[18,11,18,12],[19,11,19,12]]}
["Муниципальное казенное дошкольное образовательное учреждение \"Покровский детский сад\""]
[]
[]
[]
[]
[]
[]
[]
[]
[]
["ЖУРНАЛ"]
["учёта видов работ педагога-психолога"]
["Чадовой Анастасии Олеговны"]
["на 2022-2023 учебный год"]
[]
[]
[]
[]
[null,null,null,null,null,null,null,null,null,null,null,"Начато:",null,"00.00.0000 год"]
[null,null,null,null,null,null,null,null,null,null,null,"Окончено:",null,"00.00.0000 год"]
[]
[]
[]
[]
[]
[]
[]
["с. Покровское, 2022 год"]

{"sheet":"Консультирование","index":1,"n_rows":4,"n_cols":9,"rows_kept":4,"cut":false,"hidden":false,"merged":[[2,0,3,0],[2,1,3,1],[2,2,2,3],[2,4,2,6],[0,1,0,8],[2,7,3,7],[2,8,3,8]]}
[null,"Психологическое консультирование субъектов образовательного процесса"]
[]
["Характеркон-ции","Дата","Консультируемый",null,"Данные о ребёнке",null,null,"Характер проблемы","Результат консультации / рекомендации"]
[null,null,"Фамилия Имя отчество","Код","Фамилия, имя ребёнка/ дата рождения","Код","Группа"]

{"sheet":"Психопрофилактика","index":2,"n_rows":3,"n_cols":7,"rows_kept":3,"cut":false,"hidden":false,"merged":[[0,0,0,6]]}
["Психологическое просвещение и психологическая профилактика субъектов образовательного процесса"]
[]
["Дата проведения мероприятия","Контингент","Группа","Форма мероприятия","Наименование темы","Количество участников","Направление работы педагога-психолога"]

{"sheet":"Диагностика","index":3,"n_rows":110,"n_cols":13,"rows_kept":110,"cut":false,"hidden":false,"merged":[[104,0,104,12],[2,12,3,12],[0,0,0,12],[2,6,2,11],[105,0,105,5],[2,1,2,2],[2,0,3,0],[2,5,3,5],[2,3,2,4],[106,0,106,5],[107,0,107,5],[108,0,108,5],[109,0,109,5],[108,6,108,11],[109,6,109,11]]}
["Психологическая диагностика детей и обучающихся"]
[]
["№ п/п","Сведения о ребёнке ",null,"Сведения о группе ",null,"Дата проведения диагностики","Возраст детей",null,null,null,null,null,"Направление диагностики"]
[null,"Фамилия, имя","Дата рождения","Группа","Кол-во, обследуемых детей",null,"1-2  года","2-3 года","3-4 года","4-5 лет","5-6 лет","6-7 лет"]
[1]
[2]
[3]
[4]
[5]
[6]
[7]
[8]
[9]
[10]
[11]
[12]
[13]
[14]
[15]
[16]
[17]
[18]
[19]
[20]
[21]
[22]
[23]
[24]
[25]
[26]
[27]
[28]
[29]
[30]
[31]
[32]
[33]
[34]
[35]
[36]
[37]
[38]
[39]
[40]
[41]
[42]
[43]
[44]
[45]
[46]
[47]
[48]
[49]
[50]
[51]
[52]
[53]
[54]
[55]
[56]
[57]
[58]
[59]
[60]
[61]
[62]
[63]
[64]
[65]
[66]
[67]
[68]
[69]
[70]
[71]
[72]
[73]
[74]
[75]
[76]
[77]
[78]
[79]
[80]
[81]
[82]
[83]
[84]
[85]
[86]
[87]
[88]
[89]
[90]
[91]
[92]
[93]
[94]
[95]
[96]
[97]
[98]
[99]
[100]
["Статистические данные по результатам диагностки"]
[null,null,null,null,null,null,"1-2 года","2-3 года","3-4 года","4-5 лет","5-6 лет","6-7 лет","ВСЕГО"]
["Общее количество, проведённых индивидуальных диагностик",null,null,null,null,null,{"$f":"COUNTIF(G5:G104,\"1/и\")","v":0},0,0,0,0,0,{"$f":"SUM(G107:L107)","v":0}]
["Общее количество, проведённых групповых диагностик",null,null,null,null,null,{"$f":"COUNTIF(G5:G104,\"1/г\")","v":0},0,0,0,0,0,{"$f":"SUM(G108:L108)","v":0}]
["Общее количество детей, обследуемых индивидуально",null,null,null,null,null,{"$f":"$M$107","v":0}]
["Общее количество детей, обследумых группой",null,null,null,null,null,{"$f":"SUM(E5:E104)","v":0}]

{"sheet":"Расписание ГКРЗ","index":4,"n_rows":26,"n_cols":14,"rows_kept":26,"cut":false,"hidden":false,"merged":[[25,0,25,3],[25,4,25,5],[25,6,25,10],[0,0,0,13],[3,7,4,7],[3,8,3,10],[3,3,4,3],[3,4,3,6],[2,3,2,10],[2,0,4,0],[2,1,4,1],[2,2,4,2],[2,11,4,11],[2,12,4,12],[2,13,4,13],[25,12,25,13]]}
["Расписание групповых коррекционно-развивающих занятий с педагогом-психологом"]
[]
["Наименование программы","Код группы","Возрастной диапазон","Расписание занятий",null,null,null,null,null,null,null,"Кол-во человек","Место проведения занятия","Группа"]
[null,null,null,"День недели","Время",null,null,"День недели","Время"]
[null,null,null,null,"Начало","Конец","мин.",null,"Начало","Конец","мин."]
[null,null,null,null,null,null,{"$f":"(F6-E6)","v":"00:00:00"},null,null,null,{"$f":"(J6-I6)","v":"00:00:00"}]
[null,null,null,null,null,null,"00:00:00",null,null,null,"00:00:00"]
[null,null,null,null,null,null,"00:00:00",null,null,null,"00:00:00"]
[null,null,null,null,null,null,"00:00:00",null,null,null,"00:00:00"]
[null,null,null,null,null,null,"00:00:00",null,null,null,"00:00:00"]
[null,null,null,null,null,null,"00:00:00",null,null,null,"00:00:00"]
[null,null,null,null,null,null,"00:00:00",null,null,null,"00:00:00"]
[null,null,null,null,null,null,"00:00:00",null,null,null,"00:00:00"]
[null,null,null,null,null,null,"00:00:00",null,null,null,"00:00:00"]
[null,null,null,null,null,null,"00:00:00",null,null,null,"00:00:00"]
[null,null,null,null,null,null,"00:00:00",null,null,null,"00:00:00"]
[null,null,null,null,null,null,"00:00:00",null,null,null,"00:00:00"]
[null,null,null,null,null,null,"00:00:00",null,null,null,"00:00:00"]
[null,null,null,null,null,null,"00:00:00",null,null,null,"00:00:00"]
[null,null,null,null,null,null,"00:00:00",null,null,null,"00:00:00"]
[null,null,null,null,null,null,"00:00:00",null,null,null,"00:00:00"]
[null,null,null,null,null,null,"00:00:00",null,null,null,"00:00:00"]
[null,null,null,null,null,null,"00:00:00",null,null,null,"00:00:00"]
[null,null,null,null,null,null,"00:00:00",null,null,null,"00:00:00"]
[null,null,null,null,null,null,"00:00:00",null,null,null,"00:00:00"]
["Время, затраченное на групповую коррекционно-развивающую работу",null,null,null,{"$f":"SUM(G6:G25,K6:K25)","v":"00:00:00"},null,"Количество человек, охваченных групповой коррекционно-развивающей работой",null,null,null,null,{"$f":"SUM(L6:L25)","v":0}]

{"sheet":"Списки детей на ГКРЗ","index":5,"n_rows":103,"n_cols":7,"rows_kept":103,"cut":false,"hidden":false,"merged":[[0,0,0,6]]}
["Список детей, зачисленных на групповые коррекционно-развивающие занятия с педагогом-психологом"]
[]
["№ п/п","Фамилия, имя ребёнка","Дата рождения","Возрастной диапазон","Категория","Посещаемая группа","Код группы"]
[1]
[2]
[3]
[4]
[5]
[6]
[7]
[8]
[9]
[10]
[11]
[12]
[13]
[14]
[15]
[16]
[17]
[18]
[19]
[20]
[21]
[22]
[23]
[24]
[25]
[26]
[27]
[28]
[29]
[30]
[31]
[32]
[33]
[34]
[35]
[36]
[37]
[38]
[39]
[40]
[41]
[42]
[43]
[44]
[45]
[46]
[47]
[48]
[49]
[50]
[51]
[52]
[53]
[54]
[55]
[56]
[57]
[58]
[59]
[60]
[61]
[62]
[63]
[64]
[65]
[66]
[67]
[68]
[69]
[70]
[71]
[72]
[73]
[74]
[75]
[76]
[77]
[78]
[79]
[80]
[81]
[82]
[83]
[84]
[85]
[86]
[87]
[88]
[89]
[90]
[91]
[92]
[93]
[94]
[95]
[96]
[97]
[98]
[99]
[100]

{"sheet":"Табель ГКРЗ(09)","index":6,"n_rows":106,"n_cols":31,"rows_kept":106,"cut":false,"hidden":false,"merged":[[2,30,4,30],[0,0,0,30],[105,0,105,27],[2,27,4,27],[2,0,4,0],[2,1,4,1],[2,2,2,26],[2,28,4,28],[2,29,4,29]]}
["Табель учёта групповых коррекционно-развивающих занятий "]
[]
["№ п/п","Фамилия, имя ребёнка ","Сентябрь",null,null,null,null,null,null,null,null,null,null,null,null,null,null,null,null,null,null,null,null,null,null,null,null,"Код группы","Кол-во посещений","Кол-во пропусков","Общее кол-во занятий"]
[null,null,{"$f":"TEXT(C5,\"ДДД\")","v":"Пн"},{"$f":"TEXT(D5,\"ДДД\")","v":"Вт"},"Ср","Чт","Пт","Сб","Вс","Пн","Вт","Ср","Чт"]
[null,null,"2021-09-20","2021-09-21","2021-09-22","2021-09-23","2021-09-24","2021-09-25","2021-09-26","2021-09-27","2021-09-28","2021-09-29","2021-09-30"]
[1,{"$f":"IFERROR(VLOOKUP(A6,'Списки детей на ГКРЗ'!A3:F95,2),\"0\")","v":0},null,null,null,null,null,null,null,null,null,null,null,null,null,null,null,null,null,null,null,null,null,null,null,null,null,{"$f":"VLOOKUP(A6,'Списки детей на ГКРЗ'!A4:G103,7)","v":0},{"$f":"COUNTIF(C6:AA6,\"п\")","v":0},{"$f":"COUNTIF(C6:AA6,\"н\")","v":0},{"$f":"SUM(AC6:AD6)","v":0}]
[2,{"$f":"IFERROR(VLOOKUP(A7,'Списки детей на ГКРЗ'!A4:F96,2),\"0\")","v":0},null,null,null,null,null,null,null,null,null,null,null,null,null,null,null,null,null,null,null,null,null,null,null,null,null,{"$f":"VLOOKUP(A7,'Списки детей на ГКРЗ'!A5:G104,7)","v":0},{"$f":"COUNTIF(C7:AA7,\"п\")","v":0},{"$f":"COUNTIF(C7:AA7,\"н\")","v":0},{"$f":"SUM(AC7:AD7)","v":0}]
[3,{"$f":"IFERROR(VLOOKUP(A8,'Списки детей на ГКРЗ'!A5:F97,2),\"0\")","v":0},null,null,null,null,null,null,null,null,null,null,null,null,null,null,null,null,null,null,null,null,null,null,null,null,null,{"$f":"VLOOKUP(A8,'Списки детей на ГКРЗ'!A6:G105,7)","v":0},0,0,0]
[4,{"$f":"IFERROR(VLOOKUP(A9,'Списки детей на ГКРЗ'!A6:F98,2),\"0\")","v":0},null,null,null,null,null,null,null,null,null,null,null,null,null,null,null,null,null,null,null,null,null,null,null,null,null,{"$f":"VLOOKUP(A9,'Списки детей на ГКРЗ'!A7:G106,7)","v":0},0,0,0]
[5,{"$f":"IFERROR(VLOOKUP(A10,'Списки детей на ГКРЗ'!A7:F99,2),\"0\")","v":0},null,null,null,null,null,null,null,null,null,null,null,null,null,null,null,null,null,null,null,null,null,null,null,null,null,{"$f":"VLOOKUP(A10,'Списки детей на ГКРЗ'!A8:G107,7)","v":0},0,0,0]
[6,{"$f":"IFERROR(VLOOKUP(A11,'Списки детей на ГКРЗ'!A8:F100,2),\"0\")","v":0},null,null,null,null,null,null,null,null,null,null,null,null,null,null,null,null,null,null,null,null,null,null,null,null,null,{"$f":"VLOOKUP(A11,'Списки детей на ГКРЗ'!A9:G108,7)","v":0},0,0,0]
[7,{"$f":"IFERROR(VLOOKUP(A12,'Списки детей на ГКРЗ'!A9:F101,2),\"0\")","v":0},null,null,null,null,null,null,null,null,null,null,null,null,null,null,null,null,null,null,null,null,null,null,null,null,null,{"$f":"VLOOKUP(A12,'Списки детей на ГКРЗ'!A10:G109,7)","v":0},0,0,0]
[8,{"$f":"IFERROR(VLOOKUP(A13,'Списки детей на ГКРЗ'!A10:F102,2),\"0\")","v":0},null,null,null,null,null,null,null,null,null,null,null,null,null,null,null,null,null,null,null,null,null,null,null,null,null,{"$f":"VLOOKUP(A13,'Списки детей на ГКРЗ'!A11:G110,7)","v":0},0,0,0]
[9,{"$f":"IFERROR(VLOOKUP(A14,'Списки детей на ГКРЗ'!A11:F103,2),\"0\")","v":0},null,null,null,null,null,null,null,null,null,null,null,null,null,null,null,null,null,null,null,null,null,null,null,null,null,{"$f":"VLOOKUP(A14,'Списки детей на ГКРЗ'!A12:G111,7)","v":0},0,0,0]
[10,{"$f":"IFERROR(VLOOKUP(A15,'Списки детей на ГКРЗ'!A12:F104,2),\"0\")","v":0},null,null,null,null,null,null,null,null,null,null,null,null,null,null,null,null,null,null,null,null,null,null,null,null,null,{"$f":"VLOOKUP(A15,'Списки детей на ГКРЗ'!A13:G112,7)","v":0},0,0,0]
[11,{"$f":"IFERROR(VLOOKUP(A16,'Списки детей на ГКРЗ'!A13:F105,2),\"0\")","v":0},null,null,null,null,null,null,null,null,null,null,null,null,null,null,null,null,null,null,null,null,null,null,null,null,null,{"$f":"VLOOKUP(A16,'Списки детей на ГКРЗ'!A14:G113,7)","v":0},0,0,0]
[12,{"$f":"IFERROR(VLOOKUP(A17,'Списки детей на ГКРЗ'!A14:F106,2),\"0\")","v":0},null,null,null,null,null,null,null,null,null,null,null,null,null,null,null,null,null,null,null,null,null,null,null,null,null,{"$f":"VLOOKUP(A17,'Списки детей на ГКРЗ'!A15:G114,7)","v":0},0,0,0]
[13,{"$f":"IFERROR(VLOOKUP(A18,'Списки детей на ГКРЗ'!A15:F107,2),\"0\")","v":0},null,null,null,null,null,null,null,null,null,null,null,null,null,null,null,null,null,null,null,null,null,null,null,null,null,{"$f":"VLOOKUP(A18,'Списки детей на ГКРЗ'!A16:G115,7)","v":0},0,0,0]
[14,{"$f":"IFERROR(VLOOKUP(A19,'Списки детей на ГКРЗ'!A16:F108,2),\"0\")","v":0},null,null,null,null,null,null,null,null,null,null,null,null,null,null,null,null,null,null,null,null,null,null,null,null,null,{"$f":"VLOOKUP(A19,'Списки детей на ГКРЗ'!A17:G116,7)","v":0},0,0,0]
[15,{"$f":"IFERROR(VLOOKUP(A20,'Списки детей на ГКРЗ'!A17:F109,2),\"0\")","v":0},null,null,null,null,null,null,null,null,null,null,null,null,null,null,null,null,null,null,null,null,null,null,null,null,null,{"$f":"VLOOKUP(A20,'Списки детей на ГКРЗ'!A18:G117,7)","v":0},0,0,0]
[16,{"$f":"IFERROR(VLOOKUP(A21,'Списки детей на ГКРЗ'!A18:F110,2),\"0\")","v":0},null,null,null,null,null,null,null,null,null,null,null,null,null,null,null,null,null,null,null,null,null,null,null,null,null,{"$f":"VLOOKUP(A21,'Списки детей на ГКРЗ'!A19:G118,7)","v":0},0,0,0]
[17,{"$f":"IFERROR(VLOOKUP(A22,'Списки детей на ГКРЗ'!A19:F111,2),\"0\")","v":0},null,null,null,null,null,null,null,null,null,null,null,null,null,null,null,null,null,null,null,null,null,null,null,null,null,{"$f":"VLOOKUP(A22,'Списки детей на ГКРЗ'!A20:G119,7)","v":0},0,0,0]
[18,{"$f":"IFERROR(VLOOKUP(A23,'Списки детей на ГКРЗ'!A20:F112,2),\"0\")","v":0},null,null,null,null,null,null,null,null,null,null,null,null,null,null,null,null,null,null,null,null,null,null,null,null,null,{"$f":"VLOOKUP(A23,'Списки детей на ГКРЗ'!A21:G120,7)","v":0},0,0,0]
[19,{"$f":"IFERROR(VLOOKUP(A24,'Списки детей на ГКРЗ'!A21:F113,2),\"0\")","v":0},null,null,null,null,null,null,null,null,null,null,null,null,null,null,null,null,null,null,null,null,null,null,null,null,null,{"$f":"VLOOKUP(A24,'Списки детей на ГКРЗ'!A22:G121,7)","v":0},0,0,0]
[20,{"$f":"IFERROR(VLOOKUP(A25,'Списки детей на ГКРЗ'!A22:F114,2),\"0\")","v":0},null,null,null,null,null,null,null,null,null,null,null,null,null,null,null,null,null,null,null,null,null,null,null,null,null,{"$f":"VLOOKUP(A25,'Списки детей на ГКРЗ'!A23:G122,7)","v":0},0,0,0]
[21,{"$f":"IFERROR(VLOOKUP(A26,'Списки детей на ГКРЗ'!A23:F115,2),\"0\")","v":0},null,null,null,null,null,null,null,null,null,null,null,null,null,null,null,null,null,null,null,null,null,null,null,null,null,{"$f":"VLOOKUP(A26,'Списки детей на ГКРЗ'!A24:G123,7)","v":0},0,0,0]
[22,{"$f":"IFERROR(VLOOKUP(A27,'Списки детей на ГКРЗ'!A24:F116,2),\"0\")","v":0},null,null,null,null,null,null,null,null,null,null,null,null,null,null,null,null,null,null,null,null,null,null,null,null,null,{"$f":"VLOOKUP(A27,'Списки детей на ГКРЗ'!A25:G124,7)","v":0},0,0,0]
[23,{"$f":"IFERROR(VLOOKUP(A28,'Списки детей на ГКРЗ'!A25:F117,2),\"0\")","v":0},null,null,null,null,null,null,null,null,null,null,null,null,null,null,null,null,null,null,null,null,null,null,null,null,null,{"$f":"VLOOKUP(A28,'Списки детей на ГКРЗ'!A26:G125,7)","v":0},0,0,0]
[24,{"$f":"IFERROR(VLOOKUP(A29,'Списки детей на ГКРЗ'!A26:F118,2),\"0\")","v":0},null,null,null,null,null,null,null,null,null,null,null,null,null,null,null,null,null,null,null,null,null,null,null,null,null,{"$f":"VLOOKUP(A29,'Списки детей на ГКРЗ'!A27:G126,7)","v":0},0,0,0]
[25,{"$f":"IFERROR(VLOOKUP(A30,'Списки детей на ГКРЗ'!A27:F119,2),\"0\")","v":0},null,null,null,null,null,null,null,null,null,null,null,null,null,null,null,null,null,null,null,null,null,null,null,null,null,{"$f":"VLOOKUP(A30,'Списки детей на ГКРЗ'!A28:G127,7)","v":0},0,0,0]
[26,{"$f":"IFERROR(VLOOKUP(A31,'Списки детей на ГКРЗ'!A28:F120,2),\"0\")","v":0},null,null,null,null,null,null,null,null,null,null,null,null,null,null,null,null,null,null,null,null,null,null,null,null,null,{"$f":"VLOOKUP(A31,'Списки детей на ГКРЗ'!A29:G128,7)","v":0},0,0,0]
[27,{"$f":"IFERROR(VLOOKUP(A32,'Списки детей на ГКРЗ'!A29:F121,2),\"0\")","v":0},null,null,null,null,null,null,null,null,null,null,null,null,null,null,null,null,null,null,null,null,null,null,null,null,null,{"$f":"VLOOKUP(A32,'Списки детей на ГКРЗ'!A30:G129,7)","v":0},0,0,0]
[28,{"$f":"IFERROR(VLOOKUP(A33,'Списки детей на ГКРЗ'!A30:F122,2),\"0\")","v":0},null,null,null,null,null,null,null,null,null,null,null,null,null,null,null,null,null,null,null,null,null,null,null,null,null,{"$f":"VLOOKUP(A33,'Списки детей на ГКРЗ'!A31:G130,7)","v":0},0,0,0]
[29,{"$f":"IFERROR(VLOOKUP(A34,'Списки детей на ГКРЗ'!A31:F123,2),\"0\")","v":0},null,null,null,null,null,null,null,null,null,null,null,null,null,null,null,null,null,null,null,null,null,null,null,null,null,{"$f":"VLOOKUP(A34,'Списки детей на ГКРЗ'!A32:G131,7)","v":0},0,0,0]
[30,{"$f":"IFERROR(VLOOKUP(A35,'Списки детей на ГКРЗ'!A32:F124,2),\"0\")","v":0},null,null,null,null,null,null,null,null,null,null,null,null,null,null,null,null,null,null,null,null,null,null,null,null,null,{"$f":"VLOOKUP(A35,'Списки детей на ГКРЗ'!A33:G132,7)","v":0},0,0,0]
[31,{"$f":"IFERROR(VLOOKUP(A36,'Списки детей на ГКРЗ'!A33:F125,2),\"0\")","v":0},null,null,null,null,null,null,null,null,null,null,null,null,null,null,null,null,null,null,null,null,null,null,null,null,null,{"$f":"VLOOKUP(A36,'Списки детей на ГКРЗ'!A34:G133,7)","v":0},0,0,0]
[32,{"$f":"IFERROR(VLOOKUP(A37,'Списки детей на ГКРЗ'!A34:F126,2),\"0\")","v":0},null,null,null,null,null,null,null,null,null,null,null,null,null,null,null,null,null,null,null,null,null,null,null,null,null,{"$f":"VLOOKUP(A37,'Списки детей на ГКРЗ'!A35:G134,7)","v":0},0,0,0]
[33,{"$f":"IFERROR(VLOOKUP(A38,'Списки детей на ГКРЗ'!A35:F127,2),\"0\")","v":0},null,null,null,null,null,null,null,null,null,null,null,null,null,null,null,null,null,null,null,null,null,null,null,null,null,{"$f":"VLOOKUP(A38,'Списки детей на ГКРЗ'!A36:G135,7)","v":0},0,0,0]
[34,{"$f":"IFERROR(VLOOKUP(A39,'Списки детей на ГКРЗ'!A36:F128,2),\"0\")","v":0},null,null,null,null,null,null,null,null,null,null,null,null,null,null,null,null,null,null,null,null,null,null,null,null,null,{"$f":"VLOOKUP(A39,'Списки детей на ГКРЗ'!A37:G136,7)","v":0},0,0,0]
[35,{"$f":"IFERROR(VLOOKUP(A40,'Списки детей на ГКРЗ'!A37:F129,2),\"0\")","v":0},null,null,null,null,null,null,null,null,null,null,null,null,null,null,null,null,null,null,null,null,null,null,null,null,null,{"$f":"VLOOKUP(A40,'Списки детей на ГКРЗ'!A38:G137,7)","v":0},0,0,0]
[36,{"$f":"IFERROR(VLOOKUP(A41,'Списки детей на ГКРЗ'!A38:F130,2),\"0\")","v":0},null,null,null,null,null,null,null,null,null,null,null,null,null,null,null,null,null,null,null,null,null,null,null,null,null,{"$f":"VLOOKUP(A41,'Списки детей на ГКРЗ'!A39:G138,7)","v":0},0,0,0]
[37,{"$f":"IFERROR(VLOOKUP(A42,'Списки детей на ГКРЗ'!A39:F131,2),\"0\")","v":0},null,null,null,null,null,null,null,null,null,null,null,null,null,null,null,null,null,null,null,null,null,null,null,null,null,{"$f":"VLOOKUP(A42,'Списки детей на ГКРЗ'!A40:G139,7)","v":0},0,0,0]
[38,{"$f":"IFERROR(VLOOKUP(A43,'Списки детей на ГКРЗ'!A40:F132,2),\"0\")","v":0},null,null,null,null,null,null,null,null,null,null,null,null,null,null,null,null,null,null,null,null,null,null,null,null,null,{"$f":"VLOOKUP(A43,'Списки детей на ГКРЗ'!A41:G140,7)","v":0},0,0,0]
[39,{"$f":"IFERROR(VLOOKUP(A44,'Списки детей на ГКРЗ'!A41:F133,2),\"0\")","v":0},null,null,null,null,null,null,null,null,null,null,null,null,null,null,null,null,null,null,null,null,null,null,null,null,null,{"$f":"VLOOKUP(A44,'Списки детей на ГКРЗ'!A42:G141,7)","v":0},0,0,0]
[40,{"$f":"IFERROR(VLOOKUP(A45,'Списки детей на ГКРЗ'!A42:F134,2),\"0\")","v":0},null,null,null,null,null,null,null,null,null,null,null,null,null,null,null,null,null,null,null,null,null,null,null,null,null,{"$f":"VLOOKUP(A45,'Списки детей на ГКРЗ'!A43:G142,7)","v":0},0,0,0]
[41,{"$f":"IFERROR(VLOOKUP(A46,'Списки детей на ГКРЗ'!A43:F135,2),\"0\")","v":0},null,null,null,null,null,null,null,null,null,null,null,null,null,null,null,null,null,null,null,null,null,null,null,null,null,{"$f":"VLOOKUP(A46,'Списки детей на ГКРЗ'!A44:G143,7)","v":0},0,0,0]
[42,{"$f":"IFERROR(VLOOKUP(A47,'Списки детей на ГКРЗ'!A44:F136,2),\"0\")","v":0},null,null,null,null,null,null,null,null,null,null,null,null,null,null,null,null,null,null,null,null,null,null,null,null,null,{"$f":"VLOOKUP(A47,'Списки детей на ГКРЗ'!A45:G144,7)","v":0},0,0,0]
[43,{"$f":"IFERROR(VLOOKUP(A48,'Списки детей на ГКРЗ'!A45:F137,2),\"0\")","v":0},null,null,null,null,null,null,null,null,null,null,null,null,null,null,null,null,null,null,null,null,null,null,null,null,null,{"$f":"VLOOKUP(A48,'Списки детей на ГКРЗ'!A46:G145,7)","v":0},0,0,0]
[44,{"$f":"IFERROR(VLOOKUP(A49,'Списки детей на ГКРЗ'!A46:F138,2),\"0\")","v":0},null,null,null,null,null,null,null,null,null,null,null,null,null,null,null,null,null,null,null,null,null,null,null,null,null,{"$f":"VLOOKUP(A49,'Списки детей на ГКРЗ'!A47:G146,7)","v":0},0,0,0]
[45,{"$f":"IFERROR(VLOOKUP(A50,'Списки детей на ГКРЗ'!A47:F139,2),\"0\")","v":0},null,null,null,null,null,null,null,null,null,null,null,null,null,null,null,null,null,null,null,null,null,null,null,null,null,{"$f":"VLOOKUP(A50,'Списки детей на ГКРЗ'!A48:G147,7)","v":0},0,0,0]
[46,{"$f":"IFERROR(VLOOKUP(A51,'Списки детей на ГКРЗ'!A48:F140,2),\"0\")","v":0},null,null,null,null,null,null,null,null,null,null,null,null,null,null,null,null,null,null,null,null,null,null,null,null,null,{"$f":"VLOOKUP(A51,'Списки детей на ГКРЗ'!A49:G148,7)","v":0},0,0,0]
[47,{"$f":"IFERROR(VLOOKUP(A52,'Списки детей на ГКРЗ'!A49:F141,2),\"0\")","v":0},null,null,null,null,null,null,null,null,null,null,null,null,null,null,null,null,null,null,null,null,null,null,null,null,null,{"$f":"VLOOKUP(A52,'Списки детей на ГКРЗ'!A50:G149,7)","v":0},0,0,0]
[48,{"$f":"IFERROR(VLOOKUP(A53,'Списки детей на ГКРЗ'!A50:F142,2),\"0\")","v":0},null,null,null,null,null,null,null,null,null,null,null,null,null,null,null,null,null,null,null,null,null,null,null,null,null,{"$f":"VLOOKUP(A53,'Списки детей на ГКРЗ'!A51:G150,7)","v":0},0,0,0]
[49,{"$f":"IFERROR(VLOOKUP(A54,'Списки детей на ГКРЗ'!A51:F143,2),\"0\")","v":0},null,null,null,null,null,null,null,null,null,null,null,null,null,null,null,null,null,null,null,null,null,null,null,null,null,{"$f":"VLOOKUP(A54,'Списки детей на ГКРЗ'!A52:G151,7)","v":0},0,0,0]
[50,{"$f":"IFERROR(VLOOKUP(A55,'Списки детей на ГКРЗ'!A52:F144,2),\"0\")","v":0},null,null,null,null,null,null,null,null,null,null,null,null,null,null,null,null,null,null,null,null,null,null,null,null,null,{"$f":"VLOOKUP(A55,'Списки детей на ГКРЗ'!A53:G152,7)","v":0},0,0,0]
[51,{"$f":"IFERROR(VLOOKUP(A56,'Списки детей на ГКРЗ'!A53:F145,2),\"0\")","v":0},null,null,null,null,null,null,null,null,null,null,null,null,null,null,null,null,null,null,null,null,null,null,null,null,null,{"$f":"VLOOKUP(A56,'Списки детей на ГКРЗ'!A54:G153,7)","v":0},0,0,0]
[52,{"$f":"IFERROR(VLOOKUP(A57,'Списки детей на ГКРЗ'!A54:F146,2),\"0\")","v":0},null,null,null,null,null,null,null,null,null,null,null,null,null,null,null,null,null,null,null,null,null,null,null,null,null,{"$f":"VLOOKUP(A57,'Списки детей на ГКРЗ'!A55:G154,7)","v":0},0,0,0]
[53,{"$f":"IFERROR(VLOOKUP(A58,'Списки детей на ГКРЗ'!A55:F147,2),\"0\")","v":0},null,null,null,null,null,null,null,null,null,null,null,null,null,null,null,null,null,null,null,null,null,null,null,null,null,{"$f":"VLOOKUP(A58,'Списки детей на ГКРЗ'!A56:G155,7)","v":0},0,0,0]
[54,{"$f":"IFERROR(VLOOKUP(A59,'Списки детей на ГКРЗ'!A56:F148,2),\"0\")","v":0},null,null,null,null,null,null,null,null,null,null,null,null,null,null,null,null,null,null,null,null,null,null,null,null,null,{"$f":"VLOOKUP(A59,'Списки детей на ГКРЗ'!A57:G156,7)","v":0},0,0,0]
[55,{"$f":"IFERROR(VLOOKUP(A60,'Списки детей на ГКРЗ'!A57:F149,2),\"0\")","v":0},null,null,null,null,null,null,null,null,null,null,null,null,null,null,null,null,null,null,null,null,null,null,null,null,null,{"$f":"VLOOKUP(A60,'Списки детей на ГКРЗ'!A58:G157,7)","v":0},0,0,0]
[56,{"$f":"IFERROR(VLOOKUP(A61,'Списки детей на ГКРЗ'!A58:F150,2),\"0\")","v":0},null,null,null,null,null,null,null,null,null,null,null,null,null,null,null,null,null,null,null,null,null,null,null,null,null,{"$f":"VLOOKUP(A61,'Списки детей на ГКРЗ'!A59:G158,7)","v":0},0,0,0]
[57,{"$f":"IFERROR(VLOOKUP(A62,'Списки детей на ГКРЗ'!A59:F151,2),\"0\")","v":0},null,null,null,null,null,null,null,null,null,null,null,null,null,null,null,null,null,null,null,null,null,null,null,null,null,{"$f":"VLOOKUP(A62,'Списки детей на ГКРЗ'!A60:G159,7)","v":0},0,0,0]
[58,{"$f":"IFERROR(VLOOKUP(A63,'Списки детей на ГКРЗ'!A60:F152,2),\"0\")","v":0},null,null,null,null,null,null,null,null,null,null,null,null,null,null,null,null,null,null,null,null,null,null,null,null,null,{"$f":"VLOOKUP(A63,'Списки детей на ГКРЗ'!A61:G160,7)","v":0},0,0,0]
[59,{"$f":"IFERROR(VLOOKUP(A64,'Списки детей на ГКРЗ'!A61:F153,2),\"0\")","v":0},null,null,null,null,null,null,null,null,null,null,null,null,null,null,null,null,null,null,null,null,null,null,null,null,null,{"$f":"VLOOKUP(A64,'Списки детей на ГКРЗ'!A62:G161,7)","v":0},0,0,0]
[60,{"$f":"IFERROR(VLOOKUP(A65,'Списки детей на ГКРЗ'!A62:F154,2),\"0\")","v":0},null,null,null,null,null,null,null,null,null,null,null,null,null,null,null,null,null,null,null,null,null,null,null,null,null,{"$f":"VLOOKUP(A65,'Списки детей на ГКРЗ'!A63:G162,7)","v":0},0,0,0]
[61,{"$f":"IFERROR(VLOOKUP(A66,'Списки детей на ГКРЗ'!A63:F155,2),\"0\")","v":0},null,null,null,null,null,null,null,null,null,null,null,null,null,null,null,null,null,null,null,null,null,null,null,null,null,{"$f":"VLOOKUP(A66,'Списки детей на ГКРЗ'!A64:G163,7)","v":0},0,0,0]
[62,{"$f":"IFERROR(VLOOKUP(A67,'Списки детей на ГКРЗ'!A64:F156,2),\"0\")","v":0},null,null,null,null,null,null,null,null,null,null,null,null,null,null,null,null,null,null,null,null,null,null,null,null,null,{"$f":"VLOOKUP(A67,'Списки детей на ГКРЗ'!A65:G164,7)","v":0},0,0,0]
[63,{"$f":"IFERROR(VLOOKUP(A68,'Списки детей на ГКРЗ'!A65:F157,2),\"0\")","v":0},null,null,null,null,null,null,null,null,null,null,null,null,null,null,null,null,null,null,null,null,null,null,null,null,null,{"$f":"VLOOKUP(A68,'Списки детей на ГКРЗ'!A66:G165,7)","v":0},0,0,0]
[64,{"$f":"IFERROR(VLOOKUP(A69,'Списки детей на ГКРЗ'!A66:F158,2),\"0\")","v":0},null,null,null,null,null,null,null,null,null,null,null,null,null,null,null,null,null,null,null,null,null,null,null,null,null,{"$f":"VLOOKUP(A69,'Списки детей на ГКРЗ'!A67:G166,7)","v":0},0,0,0]
[65,{"$f":"IFERROR(VLOOKUP(A70,'Списки детей на ГКРЗ'!A67:F159,2),\"0\")","v":0},null,null,null,null,null,null,null,null,null,null,null,null,null,null,null,null,null,null,null,null,null,null,null,null,null,{"$f":"VLOOKUP(A70,'Списки детей на ГКРЗ'!A68:G167,7)","v":0},0,0,0]
[66,{"$f":"IFERROR(VLOOKUP(A71,'Списки детей на ГКРЗ'!A68:F160,2),\"0\")","v":0},null,null,null,null,null,null,null,null,null,null,null,null,null,null,null,null,null,null,null,null,null,null,null,null,null,{"$f":"VLOOKUP(A71,'Списки детей на ГКРЗ'!A69:G168,7)","v":0},0,0,{"$f":"SUM(AC71:AD71)","v":0}]
[67,{"$f":"IFERROR(VLOOKUP(A72,'Списки детей на ГКРЗ'!A69:F161,2),\"0\")","v":0},null,null,null,null,null,null,null,null,null,null,null,null,null,null,null,null,null,null,null,null,null,null,null,null,null,{"$f":"VLOOKUP(A72,'Списки детей на ГКРЗ'!A70:G169,7)","v":0},0,0,0]
[68,{"$f":"IFERROR(VLOOKUP(A73,'Списки детей на ГКРЗ'!A70:F162,2),\"0\")","v":0},null,null,null,null,null,null,null,null,null,null,null,null,null,null,null,null,null,null,null,null,null,null,null,null,null,{"$f":"VLOOKUP(A73,'Списки детей на ГКРЗ'!A71:G170,7)","v":0},0,0,0]
[69,{"$f":"IFERROR(VLOOKUP(A74,'Списки детей на ГКРЗ'!A71:F163,2),\"0\")","v":0},null,null,null,null,null,null,null,null,null,null,null,null,null,null,null,null,null,null,null,null,null,null,null,null,null,{"$f":"VLOOKUP(A74,'Списки детей на ГКРЗ'!A72:G171,7)","v":0},0,0,0]
[70,{"$f":"IFERROR(VLOOKUP(A75,'Списки детей на ГКРЗ'!A72:F164,2),\"0\")","v":0},null,null,null,null,null,null,null,null,null,null,null,null,null,null,null,null,null,null,null,null,null,null,null,null,null,{"$f":"VLOOKUP(A75,'Списки детей на ГКРЗ'!A73:G172,7)","v":0},0,0,0]
[71,{"$f":"IFERROR(VLOOKUP(A76,'Списки детей на ГКРЗ'!A73:F165,2),\"0\")","v":0},null,null,null,null,null,null,null,null,null,null,null,null,null,null,null,null,null,null,null,null,null,null,null,null,null,{"$f":"VLOOKUP(A76,'Списки детей на ГКРЗ'!A74:G173,7)","v":0},0,0,0]
[72,{"$f":"IFERROR(VLOOKUP(A77,'Списки детей на ГКРЗ'!A74:F166,2),\"0\")","v":0},null,null,null,null,null,null,null,null,null,null,null,null,null,null,null,null,null,null,null,null,null,null,null,null,null,{"$f":"VLOOKUP(A77,'Списки детей на ГКРЗ'!A75:G174,7)","v":0},0,0,0]
[73,{"$f":"IFERROR(VLOOKUP(A78,'Списки детей на ГКРЗ'!A75:F167,2),\"0\")","v":0},null,null,null,null,null,null,null,null,null,null,null,null,null,null,null,null,null,null,null,null,null,null,null,null,null,{"$f":"VLOOKUP(A78,'Списки детей на ГКРЗ'!A76:G175,7)","v":0},0,0,0]
[74,{"$f":"IFERROR(VLOOKUP(A79,'Списки детей на ГКРЗ'!A76:F168,2),\"0\")","v":0},null,null,null,null,null,null,null,null,null,null,null,null,null,null,null,null,null,null,null,null,null,null,null,null,null,{"$f":"VLOOKUP(A79,'Списки детей на ГКРЗ'!A77:G176,7)","v":0},0,0,0]
[75,{"$f":"IFERROR(VLOOKUP(A80,'Списки детей на ГКРЗ'!A77:F169,2),\"0\")","v":0},null,null,null,null,null,null,null,null,null,null,null,null,null,null,null,null,null,null,null,null,null,null,null,null,null,{"$f":"VLOOKUP(A80,'Списки детей на ГКРЗ'!A78:G177,7)","v":0},0,0,0]
[76,{"$f":"IFERROR(VLOOKUP(A81,'Списки детей на ГКРЗ'!A78:F170,2),\"0\")","v":0},null,null,null,null,null,null,null,null,null,null,null,null,null,null,null,null,null,null,null,null,null,null,null,null,null,{"$f":"VLOOKUP(A81,'Списки детей на ГКРЗ'!A79:G178,7)","v":0},0,0,0]
[77,{"$f":"IFERROR(VLOOKUP(A82,'Списки детей на ГКРЗ'!A79:F171,2),\"0\")","v":0},null,null,null,null,null,null,null,null,null,null,null,null,null,null,null,null,null,null,null,null,null,null,null,null,null,{"$f":"VLOOKUP(A82,'Списки детей на ГКРЗ'!A80:G179,7)","v":0},0,0,0]
[78,{"$f":"IFERROR(VLOOKUP(A83,'Списки детей на ГКРЗ'!A80:F172,2),\"0\")","v":0},null,null,null,null,null,null,null,null,null,null,null,null,null,null,null,null,null,null,null,null,null,null,null,null,null,{"$f":"VLOOKUP(A83,'Списки детей на ГКРЗ'!A81:G180,7)","v":0},0,0,0]
[79,{"$f":"IFERROR(VLOOKUP(A84,'Списки детей на ГКРЗ'!A81:F173,2),\"0\")","v":0},null,null,null,null,null,null,null,null,null,null,null,null,null,null,null,null,null,null,null,null,null,null,null,null,null,{"$f":"VLOOKUP(A84,'Списки детей на ГКРЗ'!A82:G181,7)","v":0},{"$f":"COUNTIF(C84:AA84,\"п\")","v":0},0,0]
[80,{"$f":"IFERROR(VLOOKUP(A85,'Списки детей на ГКРЗ'!A82:F174,2),\"0\")","v":0},null,null,null,null,null,null,null,null,null,null,null,null,null,null,null,null,null,null,null,null,null,null,null,null,null,{"$f":"VLOOKUP(A85,'Списки детей на ГКРЗ'!A83:G182,7)","v":0},{"$f":"COUNTIF(C85:AA85,\"п\")","v":0},0,0]
[81,{"$f":"IFERROR(VLOOKUP(A86,'Списки детей на ГКРЗ'!A83:F175,2),\"0\")","v":0},null,null,null,null,null,null,null,null,null,null,null,null,null,null,null,null,null,null,null,null,null,null,null,null,null,{"$f":"VLOOKUP(A86,'Списки детей на ГКРЗ'!A84:G183,7)","v":0},0,0,0]
[82,{"$f":"IFERROR(VLOOKUP(A87,'Списки детей на ГКРЗ'!A84:F176,2),\"0\")","v":0},null,null,null,null,null,null,null,null,null,null,null,null,null,null,null,null,null,null,null,null,null,null,null,null,null,{"$f":"VLOOKUP(A87,'Списки детей на ГКРЗ'!A85:G184,7)","v":0},0,0,0]
[83,{"$f":"IFERROR(VLOOKUP(A88,'Списки детей на ГКРЗ'!A85:F177,2),\"0\")","v":0},null,null,null,null,null,null,null,null,null,null,null,null,null,null,null,null,null,null,null,null,null,null,null,null,null,{"$f":"VLOOKUP(A88,'Списки детей на ГКРЗ'!A86:G185,7)","v":0},0,0,0]
[84,{"$f":"IFERROR(VLOOKUP(A89,'Списки детей на ГКРЗ'!A86:F178,2),\"0\")","v":0},null,null,null,null,null,null,null,null,null,null,null,null,null,null,null,null,null,null,null,null,null,null,null,null,null,{"$f":"VLOOKUP(A89,'Списки детей на ГКРЗ'!A87:G186,7)","v":0},0,0,0]
[85,{"$f":"IFERROR(VLOOKUP(A90,'Списки детей на ГКРЗ'!A87:F179,2),\"0\")","v":0},null,null,null,null,null,null,null,null,null,null,null,null,null,null,null,null,null,null,null,null,null,null,null,null,null,{"$f":"VLOOKUP(A90,'Списки детей на ГКРЗ'!A88:G187,7)","v":0},0,0,0]
[86,{"$f":"IFERROR(VLOOKUP(A91,'Списки детей на ГКРЗ'!A88:F180,2),\"0\")","v":0},null,null,null,null,null,null,null,null,null,null,null,null,null,null,null,null,null,null,null,null,null,null,null,null,null,{"$f":"VLOOKUP(A91,'Списки детей на ГКРЗ'!A89:G188,7)","v":0},0,0,0]
[87,{"$f":"IFERROR(VLOOKUP(A92,'Списки детей на ГКРЗ'!A89:F181,2),\"0\")","v":0},null,null,null,null,null,null,null,null,null,null,null,null,null,null,null,null,null,null,null,null,null,null,null,null,null,{"$f":"VLOOKUP(A92,'Списки детей на ГКРЗ'!A90:G189,7)","v":0},0,0,0]
[88,{"$f":"IFERROR(VLOOKUP(A93,'Списки детей на ГКРЗ'!A90:F182,2),\"0\")","v":0},null,null,null,null,null,null,null,null,null,null,null,null,null,null,null,null,null,null,null,null,null,null,null,null,null,{"$f":"VLOOKUP(A93,'Списки детей на ГКРЗ'!A91:G190,7)","v":0},0,0,0]
[89,{"$f":"IFERROR(VLOOKUP(A94,'Списки детей на ГКРЗ'!A91:F183,2),\"0\")","v":0},null,null,null,null,null,null,null,null,null,null,null,null,null,null,null,null,null,null,null,null,null,null,null,null,null,{"$f":"VLOOKUP(A94,'Списки детей на ГКРЗ'!A92:G191,7)","v":0},0,0,0]
[90,{"$f":"IFERROR(VLOOKUP(A95,'Списки детей на ГКРЗ'!A92:F184,2),\"0\")","v":0},null,null,null,null,null,null,null,null,null,null,null,null,null,null,null,null,null,null,null,null,null,null,null,null,null,{"$f":"VLOOKUP(A95,'Списки детей на ГКРЗ'!A93:G192,7)","v":0},0,0,0]
[91,{"$f":"IFERROR(VLOOKUP(A96,'Списки детей на ГКРЗ'!A93:F185,2),\"0\")","v":0},null,null,null,null,null,null,null,null,null,null,null,null,null,null,null,null,null,null,null,null,null,null,null,null,null,{"$f":"VLOOKUP(A96,'Списки детей на ГКРЗ'!A94:G193,7)","v":0},0,0,0]
[92,{"$f":"IFERROR(VLOOKUP(A97,'Списки детей на ГКРЗ'!A94:F186,2),\"0\")","v":0},null,null,null,null,null,null,null,null,null,null,null,null,null,null,null,null,null,null,null,null,null,null,null,null,null,{"$f":"VLOOKUP(A97,'Списки детей на ГКРЗ'!A95:G194,7)","v":0},0,0,0]
[93,{"$f":"IFERROR(VLOOKUP(A98,'Списки детей на ГКРЗ'!A95:F187,2),\"0\")","v":0},null,null,null,null,null,null,null,null,null,null,null,null,null,null,null,null,null,null,null,null,null,null,null,null,null,{"$f":"VLOOKUP(A98,'Списки детей на ГКРЗ'!A96:G195,7)","v":0},0,0,0]
[94,{"$f":"IFERROR(VLOOKUP(A99,'Списки детей на ГКРЗ'!A96:F188,2),\"0\")","v":0},null,null,null,null,null,null,null,null,null,null,null,null,null,null,null,null,null,null,null,null,null,null,null,null,null,{"$f":"VLOOKUP(A99,'Списки детей на ГКРЗ'!A97:G196,7)","v":0},0,0,0]
[95,{"$f":"IFERROR(VLOOKUP(A100,'Списки детей на ГКРЗ'!A97:F189,2),\"0\")","v":0},null,null,null,null,null,null,null,null,null,null,null,null,null,null,null,null,null,null,null,null,null,null,null,null,null,{"$f":"VLOOKUP(A100,'Списки детей на ГКРЗ'!A98:G197,7)","v":0},0,0,0]
[96,{"$f":"IFERROR(VLOOKUP(A101,'Списки детей на ГКРЗ'!A98:F190,2),\"0\")","v":0},null,null,null,null,null,null,null,null,null,null,null,null,null,null,null,null,null,null,null,null,null,null,null,null,null,{"$f":"VLOOKUP(A101,'Списки детей на ГКРЗ'!A99:G198,7)","v":0},0,0,0]
[97,{"$f":"IFERROR(VLOOKUP(A102,'Списки детей на ГКРЗ'!A99:F191,2),\"0\")","v":0},null,null,null,null,null,null,null,null,null,null,null,null,null,null,null,null,null,null,null,null,null,null,null,null,null,{"$f":"VLOOKUP(A102,'Списки детей на ГКРЗ'!A100:G199,7)","v":0},0,0,0]
[98,{"$f":"IFERROR(VLOOKUP(A103,'Списки детей на ГКРЗ'!A100:F192,2),\"0\")","v":0},null,null,null,null,null,null,null,null,null,null,null,null,null,null,null,null,null,null,null,null,null,null,null,null,null,{"$f":"VLOOKUP(A103,'Списки детей на ГКРЗ'!A101:G200,7)","v":0},0,0,0]
[99,{"$f":"IFERROR(VLOOKUP(A104,'Списки детей на ГКРЗ'!A101:F193,2),\"0\")","v":0},null,null,null,null,null,null,null,null,null,null,null,null,null,null,null,null,null,null,null,null,null,null,null,null,null,{"$f":"VLOOKUP(A104,'Списки детей на ГКРЗ'!A102:G201,7)","v":0},0,0,0]
[100,{"$f":"IFERROR(VLOOKUP(A105,'Списки детей на ГКРЗ'!A102:F194,2),\"0\")","v":0},null,null,null,null,null,null,null,null,null,null,null,null,null,null,null,null,null,null,null,null,null,null,null,null,null,{"$f":"VLOOKUP(A105,'Списки детей на ГКРЗ'!A103:G202,7)","v":0},0,0,0]
["ИТОГО:",null,null,null,null,null,null,null,null,null,null,null,null,null,null,null,null,null,null,null,null,null,null,null,null,null,null,null,{"$f":"SUM(AC6:AC105)","v":0},{"$f":"SUM(AD6:AD105)","v":0},{"$f":"SUM(AE6:AE105)","v":0}]

{"sheet":"Раписание ИКРЗ","index":7,"n_rows":33,"n_cols":14,"rows_kept":33,"cut":false,"hidden":false,"merged":[[31,9,31,11],[32,8,32,12],[2,5,2,12],[31,0,32,7],[0,0,0,13],[3,3,4,3],[3,4,4,4],[2,0,4,0],[2,1,2,4],[3,9,4,9],[3,2,4,2],[2,13,4,13],[3,1,4,1],[3,10,3,12],[3,5,4,5],[3,6,3,8]]}
["Расписание индивидуальных коррекционно-развивающих занятий"]
[]
["№ п/п","Сведения о ребёнке",null,null,null,"Расписание занятий",null,null,null,null,null,null,null,"Направление коррекционно-развивающей работы"]
[null,"Фамилия, имя ребёнка","Возраст","Группа","Категория","День недели","Время",null,null,"День недели","Время"]
[null,null,null,null,null,null,"Нач.","Кон.","Затрач.",null,"Нач.","Кон.","Затрач."]
[1,null,null,null,null,null,null,null,{"$f":"(H6-G6)","v":"00:00:00"},null,null,null,{"$f":"(L6-K6)","v":"00:00:00"}]
[2,null,null,null,null,null,null,null,{"$f":"(H7-G7)","v":"00:00:00"},null,null,null,{"$f":"(L7-K7)","v":"00:00:00"}]
[3,null,null,null,null,null,null,null,"00:00:00",null,null,null,"00:00:00"]
[4,null,null,null,null,null,null,null,"00:00:00",null,null,null,"00:00:00"]
[5,null,null,null,null,null,null,null,"00:00:00",null,null,null,"00:00:00"]
[6,null,null,null,null,null,null,null,"00:00:00",null,null,null,"00:00:00"]
[7,null,null,null,null,null,null,null,"00:00:00",null,null,null,"00:00:00"]
[8,null,null,null,null,null,null,null,"00:00:00",null,null,null,"00:00:00"]
[9,null,null,null,null,null,null,null,"00:00:00",null,null,null,"00:00:00"]
[10,null,null,null,null,null,null,null,{"$f":"(H15-G15)","v":"00:00:00"},null,null,null,{"$f":"(L15-K15)","v":"00:00:00"}]
[11,null,null,null,null,null,null,null,{"$f":"(H16-G16)","v":"00:00:00"},null,null,null,{"$f":"(L16-K16)","v":"00:00:00"}]
[12,null,null,null,null,null,null,null,"00:00:00",null,null,null,"00:00:00"]
[13,null,null,null,null,null,null,null,"00:00:00",null,null,null,"00:00:00"]
[14,null,null,null,null,null,null,null,"00:00:00",null,null,null,"00:00:00"]
[15,null,null,null,null,null,null,null,"00:00:00",null,null,null,"00:00:00"]
[16,null,null,null,null,null,null,null,"00:00:00",null,null,null,"00:00:00"]
[17,null,null,null,null,null,null,null,"00:00:00",null,null,null,"00:00:00"]
[18,null,null,null,null,null,null,null,"00:00:00",null,null,null,"00:00:00"]
[19,null,null,null,null,null,null,null,"00:00:00",null,null,null,"00:00:00"]
[20,null,null,null,null,null,null,null,"00:00:00",null,null,null,"00:00:00"]
[21,null,null,null,null,null,null,null,"00:00:00",null,null,null,"00:00:00"]
[22,null,null,null,null,null,null,null,"00:00:00",null,null,null,"00:00:00"]
[23,null,null,null,null,null,null,null,"00:00:00",null,null,null,"00:00:00"]
[24,null,null,null,null,null,null,null,"00:00:00",null,null,null,"00:00:00"]
[25,null,null,null,null,null,null,null,"00:00:00",null,null,null,"00:00:00"]
[26,null,null,null,null,null,null,null,{"$f":"(H31-G31)","v":"00:00:00"},null,null,null,{"$f":"(L31-K31)","v":"00:00:00"}]
["Общее количество часов, затраченных на индивидуальную коррекционно-развивающую работу",null,null,null,null,null,null,null,{"$f":"SUM(I6:I31)","v":"00:00:00"},null,null,null,{"$f":"SUM(M6:M31)","v":"00:00:00"}]
[null,null,null,null,null,null,null,null,{"$f":"SUM(I32,M32)","v":"00:00:00"}]

{"sheet":"Табель ИКРЗ (09)","index":8,"n_rows":29,"n_cols":30,"rows_kept":29,"cut":false,"hidden":false,"merged":[[28,0,28,26],[0,0,0,29],[2,0,4,0],[2,1,4,1],[2,2,2,26],[2,27,4,27],[2,28,4,28],[2,29,4,29]]}
["Табель учёта индивидуальных коррекционно-развивающих занятий"]
[]
["№ п/п","Фамилия, имя ребёнка (код)","Сентябрь",null,null,null,null,null,null,null,null,null,null,null,null,null,null,null,null,null,null,null,null,null,null,null,null,"Кол-во посещений","Кол-во пропусков","Общее кол-во занятий"]
[null,null,{"$f":"TEXT(C5,\"ДДД\")","v":"Пн"},"Вт","Ср","Чт","Пт","Сб","Вс","Пн","Вт","Ср","Чт"]
[null,null,"2021-09-20","2021-09-21","2021-09-22","2021-09-23","2021-09-24","2021-09-25","2021-09-26","2021-09-27","2021-09-28","2021-09-29","2021-09-30"]
[1,{"$f":"IFERROR(VLOOKUP(A6,'Раписание ИКРЗ'!A3:N31,2),\"0\")","v":0},null,null,null,null,null,null,null,null,null,null,null,null,null,null,null,null,null,null,null,null,null,null,null,null,null,{"$f":"COUNTIF(C6:AA6,\"п\")","v":0},{"$f":"COUNTIF(C6:AA6,\"н\")","v":0},{"$f":"SUM(AB6:AC6)","v":0}]
[2,{"$f":"IFERROR(VLOOKUP(A7,'Раписание ИКРЗ'!A4:N32,2),\"0\")","v":0},null,null,null,null,null,null,null,null,null,null,null,null,null,null,null,null,null,null,null,null,null,null,null,null,null,{"$f":"COUNTIF(C7:AA7,\"п\")","v":0},{"$f":"COUNTIF(C7:AA7,\"н\")","v":0},{"$f":"SUM(AB7:AC7)","v":0}]
[3,{"$f":"IFERROR(VLOOKUP(A8,'Раписание ИКРЗ'!A5:N33,2),\"0\")","v":0},null,null,null,null,null,null,null,null,null,null,null,null,null,null,null,null,null,null,null,null,null,null,null,null,null,0,0,0]
[4,{"$f":"IFERROR(VLOOKUP(A9,'Раписание ИКРЗ'!A6:N34,2),\"0\")","v":0},null,null,null,null,null,null,null,null,null,null,null,null,null,null,null,null,null,null,null,null,null,null,null,null,null,0,0,0]
[5,{"$f":"IFERROR(VLOOKUP(A10,'Раписание ИКРЗ'!A7:N35,2),\"0\")","v":0},null,null,null,null,null,null,null,null,null,null,null,null,null,null,null,null,null,null,null,null,null,null,null,null,null,0,0,0]
[6,{"$f":"IFERROR(VLOOKUP(A11,'Раписание ИКРЗ'!A8:N36,2),\"0\")","v":0},null,null,null,null,null,null,null,null,null,null,null,null,null,null,null,null,null,null,null,null,null,null,null,null,null,0,0,0]
[7,{"$f":"IFERROR(VLOOKUP(A12,'Раписание ИКРЗ'!A9:N37,2),\"0\")","v":0},null,null,null,null,null,null,null,null,null,null,null,null,null,null,null,null,null,null,null,null,null,null,null,null,null,0,0,0]
[8,{"$f":"IFERROR(VLOOKUP(A13,'Раписание ИКРЗ'!A10:N38,2),\"0\")","v":0},null,null,null,null,null,null,null,null,null,null,null,null,null,null,null,null,null,null,null,null,null,null,null,null,null,0,0,0]
[9,{"$f":"IFERROR(VLOOKUP(A14,'Раписание ИКРЗ'!A11:N39,2),\"0\")","v":0},null,null,null,null,null,null,null,null,null,null,null,null,null,null,null,null,null,null,null,null,null,null,null,null,null,0,0,0]
[10,{"$f":"IFERROR(VLOOKUP(A15,'Раписание ИКРЗ'!A12:N40,2),\"0\")","v":0},null,null,null,null,null,null,null,null,null,null,null,null,null,null,null,null,null,null,null,null,null,null,null,null,null,0,0,0]
[11,{"$f":"IFERROR(VLOOKUP(A16,'Раписание ИКРЗ'!A13:N41,2),\"0\")","v":0},null,null,null,null,null,null,null,null,null,null,null,null,null,null,null,null,null,null,null,null,null,null,null,null,null,0,0,0]
[12,{"$f":"IFERROR(VLOOKUP(A17,'Раписание ИКРЗ'!A14:N42,2),\"0\")","v":0},null,null,null,null,null,null,null,null,null,null,null,null,null,null,null,null,null,null,null,null,null,null,null,null,null,0,0,0]
[13,{"$f":"IFERROR(VLOOKUP(A18,'Раписание ИКРЗ'!A15:N43,2),\"0\")","v":0},null,null,null,null,null,null,null,null,null,null,null,null,null,null,null,null,null,null,null,null,null,null,null,null,null,0,0,0]
[14,{"$f":"IFERROR(VLOOKUP(A19,'Раписание ИКРЗ'!A16:N44,2),\"0\")","v":0},null,null,null,null,null,null,null,null,null,null,null,null,null,null,null,null,null,null,null,null,null,null,null,null,null,0,0,0]
[15,{"$f":"IFERROR(VLOOKUP(A20,'Раписание ИКРЗ'!A17:N45,2),\"0\")","v":0},null,null,null,null,null,null,null,null,null,null,null,null,null,null,null,null,null,null,null,null,null,null,null,null,null,0,0,0]
[16,{"$f":"IFERROR(VLOOKUP(A21,'Раписание ИКРЗ'!A18:N46,2),\"0\")","v":0},null,null,null,null,null,null,null,null,null,null,null,null,null,null,null,null,null,null,null,null,null,null,null,null,null,0,0,0]
[17,{"$f":"IFERROR(VLOOKUP(A22,'Раписание ИКРЗ'!A19:N47,2),\"0\")","v":0},null,null,null,null,null,null,null,null,null,null,null,null,null,null,null,null,null,null,null,null,null,null,null,null,null,0,0,0]
[18,{"$f":"IFERROR(VLOOKUP(A23,'Раписание ИКРЗ'!A20:N48,2),\"0\")","v":0},null,null,null,null,null,null,null,null,null,null,null,null,null,null,null,null,null,null,null,null,null,null,null,null,null,0,0,0]
[19,{"$f":"IFERROR(VLOOKUP(A24,'Раписание ИКРЗ'!A21:N49,2),\"0\")","v":0},null,null,null,null,null,null,null,null,null,null,null,null,null,null,null,null,null,null,null,null,null,null,null,null,null,0,0,0]
[20,{"$f":"IFERROR(VLOOKUP(A25,'Раписание ИКРЗ'!A22:N50,2),\"0\")","v":0},null,null,null,null,null,null,null,null,null,null,null,null,null,null,null,null,null,null,null,null,null,null,null,null,null,0,0,0]
[21,{"$f":"IFERROR(VLOOKUP(A26,'Раписание ИКРЗ'!A23:N51,2),\"0\")","v":0},null,null,null,null,null,null,null,null,null,null,null,null,null,null,null,null,null,null,null,null,null,null,null,null,null,0,0,0]
[22,{"$f":"IFERROR(VLOOKUP(A27,'Раписание ИКРЗ'!A24:N52,2),\"0\")","v":0},null,null,null,null,null,null,null,null,null,null,null,null,null,null,null,null,null,null,null,null,null,null,null,null,null,0,0,0]
[23,{"$f":"IFERROR(VLOOKUP(A28,'Раписание ИКРЗ'!A25:N53,2),\"0\")","v":0},null,null,null,null,null,null,null,null,null,null,null,null,null,null,null,null,null,null,null,null,null,null,null,null,null,0,0,{"$f":"SUM(AB28:AC28)","v":0}]
["ИТОГО:",null,null,null,null,null,null,null,null,null,null,null,null,null,null,null,null,null,null,null,null,null,null,null,null,null,null,{"$f":"SUM(AB6:AB28)","v":0},{"$f":"SUM(AC6:AC28)","v":0},{"$f":"SUM(AD6:AD28)","v":0}]

{"sheet":"Экспертная деятельность","index":9,"n_rows":42,"n_cols":4,"rows_kept":42,"cut":false,"hidden":false,"merged":[[0,0,0,3],[41,0,41,2]]}
["Экспертная деятельность педагога-психолога"]
[]
["Дата","Вид экспертной деятельности","Содержание","Количество мероприятий"]
[]
[]
[]
[]
[]
[]
[]
[]
[]
[]
[]
[]
[]
[]
[]
[]
[]
[]
[]
[]
[]
[]
[]
[]
[]
[]
[]
[]
[]
[]
[]
[]
[]
[]
[]
[]
[]
[]
["ИТОГО:",null,null,{"$f":"SUM(D4:D41)","v":0}]

{"sheet":"Статистический отчёт","index":10,"n_rows":37,"n_cols":8,"rows_kept":37,"cut":false,"hidden":false,"merged":[[29,1,29,2],[28,3,28,4],[29,3,29,4],[16,5,16,6],[16,1,16,2],[13,3,13,4],[14,3,14,4],[19,0,19,7],[17,1,17,2],[17,3,17,4],[17,5,17,6],[18,1,18,2],[18,3,18,4],[18,5,18,6],[16,3,16,4],[15,0,15,7],[13,5,13,6],[14,5,14,6],[13,1,13,2],[14,1,14,2],[0,0,0,7],[2,0,2,7],[3,0,3,7],[12,1,12,2],[12,3,12,4],[12,5,12,6],[36,1,36,2],[28,5,28,6],[29,5,29,6],[6,0,6,7],[28,1,28,2],[20,0,21,0],[20,1,20,6],[20,7,21,7],[27,0,27,7],[24,5,24,6],[25,5,25,6],[26,5,26,6],[7,1,7,6],[7,7,8,7],[7,0,8,0],[11,0,11,7]]}
[{"$f":"'Титульный лист'!$A$1","v":"Муниципальное казенное дошкольное образовательное учреждение \"Покровский детский сад\""}]
[]
["Статистический отчёт педагога-психолога"]
["о проделанной работе за 2022-2023 учебный год"]
[]
[]
["Психологическая диагностика детей и обучающихся"]
[null,"Возраст детей",null,null,null,null,null,"Всего"]
[null,"1-2 года","2-3 года","3-4 года","4-5 лет","5-6 лет","6-7/8 лет"]
["Количество проведённых индивидуальных обследований",{"$f":"Диагностика!G107","v":0},{"$f":"Диагностика!H107","v":0},{"$f":"Диагностика!I107","v":0},{"$f":"Диагностика!J107","v":0},{"$f":"Диагностика!K107","v":0},{"$f":"Диагностика!L107","v":0},{"$f":"Диагностика!M107","v":0}]
["Количество проведённых групповых обследований",{"$f":"Диагностика!G108","v":0},{"$f":"Диагностика!H108","v":0},{"$f":"Диагностика!I108","v":0},{"$f":"Диагностика!J108","v":0},{"$f":"Диагностика!K108","v":0},{"$f":"Диагностика!L108","v":0},{"$f":"Диагностика!M108","v":0}]
["Психологическое консультирование субъектов образовательного процесса"]
[null,"Родители (законные представители)",null,"Педагоги",null,"Администрация",null,"Всего"]
["Количество проведённых индивидуальных консультаций",{"$f":"COUNTIF(Консультирование!D5:D29,\"Р\")","v":0},null,{"$f":"COUNTIF(Консультирование!D5:D29,\"П\")","v":0},null,{"$f":"COUNTIF(Консультирование!D5:D29,\"А\")","v":0},null,{"$f":"SUM(B14:G14)","v":0}]
["Количество человек, охваченных консультациями",{"$f":"COUNTIF(Консультирование!A5:A29,\"Пер./Р\")","v":0},null,{"$f":"COUNTIF(Консультирование!A5:A29,\"Пер./П\")","v":0},null,{"$f":"COUNTIF(Консультирование!A5:A29,\"Пер./А\")","v":0},null,{"$f":"SUM(B15:G15)","v":0}]
["Психологическое просвещение и психологическая профилактика"]
[null,"Педагоги",null,"Родители (законные представители)",null,"Дети",null,"Всего"]
["Количество проведённых мероприятий",{"$f":"COUNTIF(Психопрофилактика!B4:B30,\"Педагоги\")","v":0},null,{"$f":"COUNTIF(Психопрофилактика!B4:B30,\"Родители (законные представители)\")","v":0},null,{"$f":"COUNTIF(Психопрофилактика!B4:B30,\"Дети\")","v":0},null,{"$f":"SUM(B18:G18)","v":0}]
["Количество человек, охваченных мероприятиями ",{"$f":"SUMIF(Психопрофилактика!B4:B30,\"Педагоги\",Психопрофилактика!F4:F30)","v":0},null,{"$f":"SUMIF(Психопрофилактика!B4:B30,\"Родители (законные представители)\",Психопрофилактика!F4:F30)","v":0},null,{"$f":"SUMIF(Психопрофилактика!B4:B30,\"Дети\",Психопрофилактика!F4:F30)","v":0},null,{"$f":"SUM(B19:G19)","v":0}]
["Коррекционно-развивающая работа с детьми"]
[null,"Возраст детей",null,null,null,null,null,"Всего"]
[null,"1-2 года","2-3 года","3-4 года","4-5 лет","5-6 лет","6-7/8 лет"]
["Количество детей, посещающих индивидуальные занятия",{"$f":"COUNTIF('Раписание ИКРЗ'!A6:E31,\"1 год\")","v":0},{"$f":"COUNTIF('Раписание ИКРЗ'!A6:E31,\"2 года\")","v":0},{"$f":"COUNTIF('Раписание ИКРЗ'!A6:E31,\"3 года\")","v":0},{"$f":"COUNTIF('Раписание ИКРЗ'!A6:E31,\"4 года\")","v":0},{"$f":"COUNTIF('Раписание ИКРЗ'!A6:E31,\"5 лет\")","v":0},{"$f":"COUNTIF('Раписание ИКРЗ'!A6:E31,\"6 лет\")","v":0},{"$f":"SUM(B23:G23)","v":0}]
["Количество детей, посещающих групповые занятия",{"$f":"COUNTIF('Списки детей на ГКРЗ'!D4:D103,\"от 1 до 2 лет\")","v":0},{"$f":"COUNTIF('Списки детей на ГКРЗ'!D4:D103,\"от 2 до 3 лет\")","v":0},{"$f":"COUNTIF('Списки детей на ГКРЗ'!D4:D103,\"от 3 до 4 лет\")","v":0},{"$f":"COUNTIF('Списки детей на ГКРЗ'!D4:D103,\"от 4 до 5 лет\")","v":0},{"$f":"COUNTIF('Списки детей на ГКРЗ'!D4:D103,\"от 5 до 6 лет\")","v":0},{"$f":"COUNTIF('Списки детей на ГКРЗ'!D4:D103,\"от 6 до 7 лет\")","v":0},{"$f":"SUM(B24:G24)","v":0}]
[null,"ОВЗ","Ребёнок-инвалид","Дошкольник","Одарённый ребёнок","Ребёнок из социально-неблагополучной семьи",null,"Всего"]
["Количество детей, посещающих индивидуальные занятия",{"$f":"COUNTIF('Раписание ИКРЗ'!A6:E31,\"ОВЗ\")","v":0},{"$f":"COUNTIF('Раписание ИКРЗ'!A6:E31,\"РИ\")","v":0},{"$f":"COUNTIF('Раписание ИКРЗ'!A6:E31,\"Д\")","v":0},{"$f":"COUNTIF('Раписание ИКРЗ'!A6:E31,\"ОР\")","v":0},{"$f":"COUNTIF('Раписание ИКРЗ'!A6:E31,\"СНС\")","v":0},null,{"$f":"SUM(B26:G26)","v":0}]
["Количество детей, посещающих групповые занятия",{"$f":"COUNTIF('Списки детей на ГКРЗ'!E4:E103,\"ОВЗ\")","v":0},{"$f":"COUNTIF('Списки детей на ГКРЗ'!E4:E102,\"РИ\")","v":0},{"$f":"COUNTIF('Списки детей на ГКРЗ'!E4:E103,\"Д\")","v":0},{"$f":"COUNTIF('Списки детей на ГКРЗ'!E4:E103,\"ОР\")","v":0},{"$f":"COUNTIF('Списки детей на ГКРЗ'!E4:E103,\"СНС\")","v":0},null,{"$f":"SUM(B27:G27)","v":0}]
["Экспертная деятельность"]
[null,"Экспертиза программ, актуального педагогического опыта, текстов выступлений.",null,"Экспертиза (оценка) комфортности и безопасности образовательной среды.",null,"Психолого-педагогический консилиум.",null,"Всего"]
["Количество, проведённых мероприятий",{"$f":"SUMIF('Экспертная деятельность'!B4:B41,B29,'Экспертная деятельность'!D4:D41)","v":0},null,{"$f":"SUMIF('Экспертная деятельность'!B4:B41,D29,'Экспертная деятельность'!D4:D41)","v":0},null,{"$f":"SUMIF('Экспертная деятельность'!B4:B41,F29,'Экспертная деятельность'!D4:D41)","v":0},null,{"$f":"SUM(B30:G30)","v":0}]
[]
[]
[]
[]
[]
[]
["Педагог-психолог: ___________________/","Фамилия И.О.",null,null,null,null,"Дата:","00.00.0000 год"]

{"sheet":"Рабочий лист","index":11,"n_rows":13,"n_cols":29,"rows_kept":13,"cut":false,"hidden":false,"merged":[]}
["Виды экспертной деятельности",null,"Характер консультации",null,"Код консультируемого",null,"Код ребёнка",null,"Группа",null,"Характер проблемы",null,"Контингент",null,"Форма мероприятия",null,"Направление работы педагога-психолога",null,"Направление диагностики",null,"День недели",null,"Возрастной диапазон",null,"Место проведения занятий",null,"Направления коррекционно-развивающей работы",null,"Месяц"]
["Психолого-педагогический консилиум.",null,"Пер./Р",null,"Р",null,"ОВЗ",null,"Все",null,"Проблемы связанные с воспитанием.",null,"Родители (законные представители)",null,"Мастер-класс",null,"Психологическое консультирование",null,"Наблюдение за процессом адаптации.",null,"Пн",null,"от 1 до 2 лет",null,"Кабинет педагога-психолога",null,"Развитие познавательной сферы.",null,"Сентябрь"]
["Экспертиза (оценка) комфортности и безопасности образовательной среды.",null,"Пер./П",null,"П",null,"РИ",null,"Ясельная группа",null,"Проблемы поведенческого характера (неуправляемость, грубость, агрессивность).",null,"Педагоги",null,"Тренинг",null,"Психологическая диагностика",null,"Диагностика познавательного развития.",null,"Вт",null,"от 2 до 3 лет",null,"Сенсорная комната",null,"Развитие эмоционально-волевой сферы.",null,"Октябрь"]
["Экспертиза программ, актуального педагогического опыта, текстов выступлений.",null,"Пер./А",null,"А",null,"СНС",null,"1 младшая группа",null,"Определение уровня актуального развития.",null,"Дети",null,"Семинар",null,"Психологическое просвещение",null,"Диагностика эмоционально-волевой сферы.",null,"Ср",null,"от 3 до 4 лет",null,"Групповое помещение",null,"Развитие пространственных представлений.",null,"Ноябрь"]
[null,null,"Пов./Р",null,null,null,"ОР",null,"2 младшая группа",null,"Проблемы, связанные с развитием речи.",null,null,null,"Семинар-практикум",null,"Психологическая профилактика",null,"Выявление предпосылок одарённости.",null,"Чт",null,"от 4 до 5 лет",null,null,null,"Развитие игровой деятельности.",null,"Декабрь"]
[null,null,"Пов./П",null,null,null,"Д",null,"Средняя группа",null,"Определение  дальнейшего образовательного маршрута.",null,null,null,"Консультация",null,"Коррекционно-разивающая работа",null,"Диагноста детско-родительских отношений.",null,"Пт",null,"от 5 до 6 лет",null,null,null,"Сенсомоторное развитие.",null,"Январь"]
[null,null,"Пов./А",null,null,null,null,null,"Старшая группа",null,"Проблемы общения (замкнутость, повышенная обидчивость, неадекватные притязания на лидерство и т.д.).",null,null,null,"Лекция",null,"Экспертная деятельность",null,"Диагностика межличносных отношений в группе.",null,"Сб",null,"от 6 до 7 лет",null,null,null,"Развитие социально-коммуникативных навыков.",null,"Февраль"]
[null,null,null,null,null,null,null,null,"Подготовительная группа",null,"Эмоциональные и личностные проблемы (сниженное настроение, повышенная возбудимость, частая смена настроения, страхи, раздражительность).",null,null,null,"Круглый стол, дискуссия",null,null,null,"Диагностика нервно-психического развития.",null,"Вс",null,null,null,null,null,"Развитие временных представлений.",null,"Март"]
[null,null,null,null,null,null,null,null,null,null,"Невротические проблемы (тики, навязчивые движения, повышенная утомляемость, нарушение сна, частые жалобы на головные боли).",null,null,null,"Психологическая акция",null,null,null,"Диагностика готовности к школе.",null,null,null,null,null,null,null,"Развитие произвольной регуляции деятельности и поведения.",null,"Апрель"]
[null,null,null,null,null,null,null,null,null,null,"Проблемы, связанные с умственным развитием (не усваивает программу обучения, низкий уровень познавательного развития).",null,null,null,"Родительское собрание",null,null,null,"Диагностика тревожности и наличия страхов.",null,null,null,null,null,null,null,null,null,"Май"]
[null,null,null,null,null,null,null,null,null,null,"Трудности адаптации к детскому саду.",null,null,null,"Игровой тренинг",null,null,null,"Исследование самооценки.",null,null,null,null,null,null,null,null,null,"Июнь"]
[null,null,null,null,null,null,null,null,null,null,"Направление на ПМПК.",null,null,null,"Совместное мероприятие родителей и детей",null,null,null,"Определение эмоционального состояния ребёнка.",null,null,null,null,null,null,null,null,null,"Июль"]
[null,null,null,null,null,null,null,null,null,null,null,null,null,null,"Родительский клуб",null,null,null,null,null,null,null,null,null,null,null,null,null,"Август"]